bitfinex/quotes_ETHUSD_20240921
["timestamp","ask_amount","ask_price","bid_price","bid_amount"]
[1726958617839,0.81601519,2572.2,2571.9,3.96656324]
[1726958618136,0.81601519,2572.2,2571.9,4.36321956]
[1726958618501,0.81601519,2572.2,2572.0,0.15444751]
[1726958619101,0.81601519,2572.3,2572.0,0.15444751]
[1726958620940,0.81601519,2572.4,2572.0,0.15444751]
[1726958621134,0.81601519,2572.3,2572.0,0.15444751]
[1726958621459,0.81601519,2572.3,2571.9,3.96656324]
[1726958628765,0.81601519,2572.4,2571.9,3.96656324]
[1726958629267,0.81601519,2572.3,2571.9,3.96656324]
[1726958635858,0.81601519,2572.3,2571.9,2.2582]
[1726958636061,1.15839832,2572.3,2572.0,0.15446367]
[1726958636681,0.81601519,2572.2,2571.9,2.2582]
[1726958636889,0.81601519,2572.2,2572.0,0.15446367]
[1726958638446,0.81601519,2572.1,2572.0,0.15446367]
[1726958638647,0.81601519,2572.2,2572.0,0.15446367]
[1726958638951,0.81601519,2572.2,2571.9,2.2582]
[1726958640206,0.81601519,2572.1,2571.9,2.2582]
[1726958641562,1.22401606,2572.3,2571.9,2.2582]
[1726958641563,0.81601519,2572.2,2571.9,2.2582]
[1726958642891,0.81601519,2572.1,2571.9,2.2582]
[1726958643398,0.81601519,2572.2,2571.9,2.2582]
[1726958645477,0.81601519,2572.1,2571.9,2.2582]
[1726958645803,0.81601519,2572.2,2571.9,2.2582]
[1726958646876,2.56682153,2572.2,2571.7,2.4965]
[1726958647071,0.81601519,2572.1,2571.8,0.15465801]
[1726958647572,0.81601519,2572.0,2571.8,0.15465801]
[1726958647770,0.81601519,2572.0,2571.7,4.20486324]
[1726958648306,0.81601519,2572.0,2571.8,0.15465801]
[1726958650158,3.3808385,2572.2,2571.8,0.15465801]
[1726958650159,0.81601519,2572.2,2572.0,2.4007]
[1726958650396,1.22401606,2572.3,2572.1,1.70836324]
[1726958650397,0.81601519,2572.3,2572.1,1.70836324]
[1726958650598,0.81601519,2572.3,2572.1,1.86276341]
[1726958650807,0.81601519,2572.3,2572.1,1.70836324]
[1726958652663,0.81601519,2572.4,2572.1,1.70836324]
[1726958653812,0.81601519,2572.3,2572.1,1.70836324]
[1726958653977,0.81601519,2572.4,2572.1,1.70836324]
[1726958654299,0.81601519,2572.3,2572.1,1.70836324]
[1726958667016,0.81601519,2572.3,2572.0,2.4007]
[1726958667392,0.81601519,2572.3,2572.1,0.15427367]
[1726958667787,0.81601519,2572.3,2572.0,2.4007]
[1726958668124,0.81601519,2572.3,2572.1,0.15427367]
[1726958668424,0.81601519,2572.3,2572.0,2.4007]
[1726958668919,0.81601519,2572.3,2572.1,0.15427367]
[1726958669221,0.81601519,2572.2,2572.0,2.4007]
[1726958669594,0.81601519,2572.2,2572.1,0.15427367]
[1726958669993,0.81601519,2572.3,2572.0,2.4007]
[1726958670628,0.81601519,2572.2,2572.0,2.4007]
[1726958671120,0.81601519,2572.2,2572.1,0.15431404]
[1726958671425,0.81601519,2572.3,2572.1,0.15431404]
[1726958671921,0.81601519,2572.2,2572.0,2.4007]
[1726958672106,0.81601519,2572.3,2572.1,0.15431404]
[1726958672275,0.81601519,2572.3,2572.0,2.4007]
[1726958678137,0.81601519,2572.3,2572.1,0.15432211]
[1726958678532,0.81601519,2572.3,2572.0,2.4007]
[1726958684937,0.81601519,2572.3,2572.1,0.15430594]
[1726958685109,0.81601519,2572.3,2572.0,2.4007]
[1726958688538,8.28343169,2572.7,2572.2,2.478]
[1726958688740,8.28343169,2572.7,2572.1,1.86266918]
[1726958688741,0.85343169,2572.7,2572.6,1.70836324]
[1726958688946,0.85343169,2572.7,2572.6,1.86221716]
[1726958689244,0.0374165,2572.7,2572.6,1.86221716]
[1726958689929,0.0374165,2572.7,2572.6,1.70836324]
[1726958699254,0.0374165,2572.7,2572.5,2.478]
[1726958699544,0.0374165,2572.7,2572.6,0.15374899]
[1726958701348,0.0374165,2572.7,2572.6,4.19051223]
[1726958702111,0.0374165,2572.7,2572.6,2.48214899]
[1726958702339,0.0374165,2572.7,2572.6,2.3284]
[1726958702553,0.0374165,2572.7,2572.6,2.48204136]
[1726958703308,0.0374165,2572.7,2572.6,1.8620046]
[1726958703546,0.0374165,2572.7,2572.6,2.28104506]
[1726958705079,0.0374165,2572.7,2572.6,2.64923035]
[1726958705434,0.0374165,2572.7,2572.6,2.28104506]
[1726958711806,0.0374165,2572.7,2572.6,0.15364136]
[1726958712303,0.0374165,2572.7,2572.4,4.03676324]
[1726958712489,0.0374165,2572.7,2572.5,0.15370215]
[1726958715900,0.0374165,2572.7,2572.1,3.97356324]
[1726958716241,0.0374165,2572.7,2572.2,3.15398681]
[1726958716740,0.0374165,2572.7,2572.3,1.70836324]
[1726958717034,0.0374165,2572.7,2572.4,0.15387865]
[1726958719737,0.0374165,2572.7,2572.5,1.70836324]
[1726958719945,0.0374165,2572.7,2572.6,0.15368172]
[1726958734655,0.0374165,2572.7,2572.6,2.53078172]
[1726958735090,0.0374165,2572.7,2572.6,2.3771]
[1726958735390,0.0374165,2572.7,2572.6,2.53075482]
[1726958736688,0.0374165,2572.7,2572.6,0.15365482]
[1726958737062,0.0374165,2572.7,2572.5,1.70836324]
[1726958737260,0.0374165,2572.7,2572.6,0.15365482]
[1726958740811,0.0374165,2572.7,2572.4,2.3771]
[1726958740961,0.0374165,2572.7,2572.6,0.15365482]
[1726958741167,0.0374165,2572.7,2572.4,2.3771]
[1726958741378,0.0374165,2572.7,2572.5,0.15374521]
[1726958747508,0.85343169,2572.7,2572.5,0.15374521]
[1726958747884,0.85343169,2572.7,2572.3,4.08546324]
[1726958748082,0.85343169,2572.7,2572.6,0.15363329]
[1726958748308,1.36255968,2572.7,2572.3,2.3771]
[1726958748483,1.77056055,2572.7,2572.6,0.15363329]
[1726958748807,0.54654449,2572.7,2572.6,0.15363329]
[1726958748988,0.54654449,2572.7,2572.3,2.3771]
[1726958749188,0.54654449,2572.7,2572.1,2.3111]
[1726958749189,1.3838,2572.5,2572.1,2.3111]
[1726958749408,2.2000968,2572.5,2572.2,0.15400028]
[1726958749797,2.2000968,2572.5,2572.2,1.86236352]
[1726958750123,0.8162968,2572.6,2572.4,1.70836324]
[1726958750488,0.8162968,2572.6,2572.5,0.15375059]
[1726958750683,0.8162968,2572.6,2572.4,1.70836324]
[1726958750917,0.8162968,2572.6,2572.5,0.15375059]
[1726958754227,0.8162968,2572.6,2572.4,1.70836324]
[1726958759627,0.8162968,2572.6,2572.5,0.14879384]
[1726958760745,0.8537133,2572.7,2572.5,0.14879384]
[1726958762031,0.0374165,2572.7,2572.5,0.14879384]
[1726958762343,0.8537133,2572.7,2572.5,0.14879384]
[1726958762704,0.0374165,2572.7,2572.5,0.14879384]
[1726958763339,0.8537133,2572.7,2572.5,0.14879384]
[1726958763648,2.20007549,2572.6,2572.5,0.14879384]
[1726958763821,1.3838,2572.6,2572.5,0.14879384]
[1726958764142,2.20006944,2572.6,2572.3,1.70836324]
[1726958764452,2.20006944,2572.6,2572.4,0.14887885]
[1726958765149,2.20006944,2572.6,2572.3,1.70836324]
[1726958765913,0.81626944,2572.6,2572.3,1.70836324]
[1726958766109,0.85368594,2572.7,2572.5,1.70836324]
[1726958766540,0.85368594,2572.7,2572.6,0.14871151]
[1726958766703,0.85368594,2572.7,2572.5,1.70836324]
[1726958768209,0.0374165,2572.7,2572.5,1.70836324]
[1726958768410,0.85368594,2572.7,2572.5,1.70836324]
[1726958768609,0.0374165,2572.7,2572.5,1.70836324]
[1726958768939,0.85368594,2572.7,2572.5,1.70836324]
[1726958769443,0.0374165,2572.7,2572.5,1.70836324]
[1726958770234,0.85368594,2572.7,2572.5,1.70836324]
[1726958770438,0.0374165,2572.7,2572.5,1.70836324]
[1726958770823,0.85368594,2572.7,2572.5,1.70836324]
[1726958771212,0.0374165,2572.7,2572.5,1.70836324]
[1726958789776,0.0374165,2572.7,2572.5,2.1805042]
[1726958792724,0.0374165,2572.7,2572.5,1.70836324]
[1726958804930,2.20006944,2572.9,2572.5,1.70836324]
[1726958804931,2.18748594,2572.9,2572.5,1.70836324]
[1726958806961,2.13748594,2572.9,2572.5,1.70836324]
[1726958807555,2.13748594,2572.9,2572.4,2.3111]
[1726958807791,1.3838,2572.7,2572.2,4.70836324]
[1726958808059,1.3838,2572.7,2572.3,0.14408353]
[1726958808285,1.3838,2572.7,2572.2,4.70836324]
[1726958808492,1.3838,2572.7,2572.4,0.14399312]
[1726958808792,1.3838,2572.7,2572.3,0.14408353]
[1726958808967,1.3838,2572.7,2572.2,4.70836324]
[1726958808968,1.3838,2572.7,2572.5,0.14390273]
[1726958809169,1.3838,2572.7,2572.4,0.14399312]
[1726958809366,1.3838,2572.7,2572.6,0.14381234]
[1726958809567,1.22401606,2572.8,2572.6,1.70836324]
[1726958809803,1.22401606,2572.9,2572.6,1.85225035]
[1726958810155,1.22401606,2572.9,2572.6,1.70836324]
[1726958814390,1.22401606,2572.9,2572.5,2.4385]
[1726958816912,0.81631535,2572.8,2572.5,2.4385]
[1726958817935,0.81631535,2572.7,2572.5,2.4385]
[1726958818422,0.81631535,2572.7,2572.6,0.14388711]
[1726958819223,2.20011535,2572.7,2572.6,0.14388711]
[1726958819789,0.81631535,2572.7,2572.3,3.0]
[1726958819992,0.81631535,2572.7,2572.6,0.14387911]
[1726958820625,1.88921636,2572.7,2572.0,1.70836324]
[1726958820856,0.8163875,2572.5,2572.2,4.70836324]
[1726958821363,0.8163875,2572.6,2572.3,0.14415565]
[1726958821735,0.8163875,2572.6,2572.2,4.70836324]
[1726958822043,0.8163875,2572.6,2571.7,0.55]
[1726958822044,0.8163875,2572.6,2572.4,1.85244184]
[1726958822222,0.8163875,2572.7,2572.4,1.70836324]
[1726958822627,0.8163875,2572.7,2572.5,0.1439882]
[1726958822834,0.8163875,2572.7,2572.6,0.14389781]
[1726958823257,0.8163875,2572.7,2572.4,1.70836324]
[1726958823459,0.8163875,2572.7,2572.5,0.1439882]
[1726958826956,0.8163875,2572.8,2572.5,0.1439882]
[1726958827154,0.8163875,2572.7,2572.5,0.1439882]
[1726958827360,0.8163875,2572.7,2572.4,1.70836324]
[1726958827541,0.8163875,2572.7,2572.6,0.14389781]
[1726958827747,0.8163875,2572.8,2572.4,1.70836324]
[1726958827950,0.8163875,2572.7,2572.4,1.70836324]
[1726958828145,0.8163875,2572.7,2572.5,0.1439882]
[1726958835597,0.8163875,2572.8,2572.5,2.4754882]
[1726958836005,0.8163875,2572.8,2572.5,2.3315]
[1726958837210,0.8163875,2572.7,2572.5,2.3315]
[1726958837570,0.8163875,2572.7,2572.6,0.14390581]
[1726958839390,0.8163875,2572.8,2572.6,0.14390581]
[1726958839789,0.8163875,2572.7,2572.5,2.3315]
[1726958840172,0.8163875,2572.7,2572.6,0.14390581]
[1726958841388,1.22461244,2572.9,2572.6,0.14390581]
[1726958841389,0.8163875,2572.8,2572.6,0.14390581]
[1726958841712,0.8163875,2572.7,2572.5,2.3315]
[1726958842785,0.8163875,2572.7,2572.6,0.14389781]
[1726958850812,0.8163875,2572.7,2572.5,2.3315]
[1726958850969,0.8163875,2572.7,2572.6,0.14387643]
[1726958853340,1.22461244,2572.8,2572.6,0.14387643]
[1726958853542,1.22461244,2572.8,2572.5,2.3315]
[1726958853756,0.81667839,2572.6,2572.5,2.3315]
[1726958855141,0.81667839,2572.7,2572.5,2.3315]
[1726958856039,0.81667839,2572.6,2572.5,2.3315]
[1726958857841,0.81667839,2572.6,2572.5,2.47546682]
[1726958863614,0.81667839,2572.6,2572.5,2.3315]
[1726958863968,0.81667839,2572.6,2572.5,2.47546682]
[1726958866271,0.81667839,2572.6,2572.5,0.14396682]
[1726958866471,0.81667839,2572.6,2572.3,2.4471]
[1726958866708,0.81667839,2572.6,2572.4,0.14405989]
[1726958875314,0.81667839,2572.6,2572.4,0.5740122]
[1726958875918,0.81667839,2572.6,2572.4,2.28237544]
[1726958878358,0.81667839,2572.7,2572.4,2.28237544]
[1726958878623,0.81667839,2572.7,2572.6,1.70836324]
[1726958885000,0.81667839,2572.8,2572.6,4.09986324]
[1726958886443,0.81667839,2572.9,2572.6,4.09986324]
[1726958886942,0.81667839,2572.8,2572.6,4.09986324]
[1726958887526,0.81667839,2572.9,2572.6,4.09986324]
[1726958892452,0.81667839,2572.8,2572.6,4.09986324]
[1726958892966,0.81667839,2572.9,2572.6,4.09986324]
[1726958901620,0.81667839,2572.9,2572.4,4.05986324]
[1726958901802,0.81667839,2572.8,2572.4,4.05986324]
[1726958902002,0.81667839,2572.8,2572.4,2.3515]
[1726958902003,0.81667839,2572.7,2572.4,2.3515]
[1726958902323,0.81667839,2572.7,2572.5,0.13874997]
[1726958906079,2.20047839,2572.6,2572.5,0.13874997]
[1726958906364,3.11392474,2572.6,2572.1,4.05986324]
[1726958906574,0.81619895,2572.5,2572.3,1.70836324]
[1726958910044,2.19999895,2572.6,2572.3,1.70836324]
[1726958910246,0.81619895,2572.5,2572.3,1.70836324]
[1726958910631,2.19999895,2572.6,2572.3,1.70836324]
[1726958920314,2.19999895,2572.6,2572.1,2.3515]
[1726958920625,2.19999895,2572.6,2572.3,1.70836324]
[1726958920849,2.70546331,2572.6,2572.3,1.70836324]
[1726958924343,2.19999895,2572.6,2572.3,1.70836324]
[1726958930740,1.3838,2572.6,2572.3,1.70836324]
[1726958931077,0.81619895,2572.7,2572.5,1.70836324]
[1726958931352,2.19999895,2572.8,2572.5,1.70836324]
[1726958933111,1.19999895,2572.8,2572.5,1.70836324]
[1726958933306,0.19999895,2572.8,2572.5,1.70836324]
[1726958934575,0.42461139,2572.9,2572.5,1.70836324]
[1726958934759,1.76172075,2572.9,2572.5,1.70836324]
[1726958935572,0.42461139,2572.9,2572.5,1.70836324]
[1726958938441,0.42461139,2572.9,2572.5,4.10116324]
[1726958938973,1.63003216,2573.1,2572.5,4.10116324]
[1726958939381,1.63003216,2573.1,2572.7,1.70836324]
[1726958940242,5.51639216,2573.1,2572.7,1.70836324]
[1726958940443,1.63003216,2573.0,2572.7,1.70836324]
[1726958940671,6.66049362,2573.1,2572.7,1.70836324]
[1726958941300,6.66049362,2573.1,2572.5,4.10116324]
[1726958941676,6.66049362,2573.1,2572.6,0.13880916]
[1726958942121,1.63003216,2573.0,2572.6,0.13880916]
[1726958943592,1.22352131,2572.9,2572.6,0.13880916]
[1726958944529,0.81573891,2572.8,2572.6,0.13880916]
[1726958945931,0.81573891,2572.8,2572.5,4.10116324]
[1726958946131,0.81573891,2572.8,2572.5,4.51127956]
[1726958946289,0.81573891,2572.7,2572.5,4.51127956]
[1726958946631,0.81573891,2572.7,2572.6,0.13880916]
[1726958947425,0.81573891,2572.8,2572.6,2.53160916]
[1726958947587,0.81573891,2572.9,2572.8,4.10116324]
[1726958947927,0.81573891,2573.0,2572.8,4.10116324]
[1726958949340,0.81573891,2573.0,2572.6,2.3928]
[1726958949552,0.81573891,2572.9,2572.6,2.3928]
[1726958949723,0.81573891,2572.8,2572.7,0.13866001]
[1726958949916,0.81573891,2572.8,2572.6,2.3928]
[1726958950120,0.81573891,2572.8,2572.7,0.13866001]
[1726958950534,0.81573891,2572.8,2572.6,2.3928]
[1726958951134,0.81573891,2572.9,2572.6,2.3928]
[1726958951958,0.81573891,2572.8,2572.6,2.3928]
[1726958952336,0.81573891,2572.9,2572.6,2.3928]
[1726958953537,1.22352131,2573.0,2572.6,2.3928]
[1726958953538,0.81573891,2572.8,2572.6,2.3928]
[1726958956384,0.81573891,2572.9,2572.6,2.3928]
[1726958956683,0.81573891,2572.8,2572.6,2.3928]
[1726958957396,0.81573891,2572.8,2572.4,4.06576324]
[1726958957602,0.81573891,2572.8,2572.5,0.13876333]
[1726958958600,0.81573891,2572.7,2572.5,0.13876333]
[1726958958962,0.81573891,2572.8,2572.5,0.13876333]
[1726958959183,0.81573891,2572.8,2572.4,4.06576324]
[1726958959390,0.81573891,2572.7,2572.4,4.06576324]
[1726958959600,0.81573891,2572.7,2572.5,0.13877402]
[1726958959892,0.81573891,2572.8,2572.5,0.13877402]
[1726958960271,0.81573891,2572.8,2572.4,4.06576324]
[1726958961984,1.22352131,2572.9,2572.4,4.06576324]
[1726958961985,0.81573891,2572.7,2572.4,4.06576324]
[1726958962303,0.81573891,2572.7,2572.5,0.13873636]
[1726958965481,0.81573891,2572.8,2572.5,0.13873636]
[1726958965786,0.81573891,2572.8,2572.4,4.06576324]
[1726958965986,0.81573891,2572.8,2572.4,4.47233956]
[1726958966190,0.81573891,2572.8,2572.5,0.13873636]
[1726958966800,0.81573891,2572.8,2572.4,4.06576324]
[1726958968059,0.81573891,2572.7,2572.4,4.06576324]
[1726958968261,0.81573891,2572.7,2572.5,0.1387497]
[1726958976470,0.81573891,2572.6,2572.5,0.1387497]
[1726958980004,0.81573891,2572.6,2572.5,2.4652497]
[1726958980202,0.81573891,2572.6,2572.5,2.88261099]
[1726958980622,0.81573891,2572.6,2572.5,2.4652497]
[1726958982353,0.81573891,2572.6,2572.5,0.1387497]
[1726958984634,0.81573891,2572.7,2572.5,0.1387497]
[1726958985550,1.03926022,2572.8,2572.5,0.1387497]
[1726958985842,1.03926022,2572.8,2572.4,1.70836324]
[1726958987810,1.03926022,2572.8,2572.5,2.3265]
[1726958988248,1.03926022,2572.8,2572.5,2.72998632]
[1726958989331,1.03926022,2572.8,2572.6,0.13863794]
[1726958989714,1.03926022,2572.8,2572.6,1.70836324]
[1726958990125,1.03926022,2572.8,2572.7,0.13854756]
[1726958990319,1.03926022,2572.8,2572.6,1.70836324]
[1726958992632,1.63003216,2573.0,2572.7,2.4124]
[1726958992946,1.63003216,2573.1,2572.7,2.4124]
[1726958994568,1.22455262,2572.9,2572.7,2.4124]
[1726958995351,0.81644286,2572.8,2572.7,2.4124]
[1726958995759,0.81644286,2572.8,2572.7,2.55094756]
[1726958996365,1.22455262,2572.9,2572.7,2.55094756]
[1726958996524,0.81643621,2572.8,2572.7,0.13854756]
[1726958999835,0.81643621,2572.8,2572.5,2.4124]
[1726959000037,0.81643621,2572.8,2572.6,0.13863794]
[1726959001177,0.81643621,2572.7,2572.6,0.13863794]
[1726959006392,0.81643621,2572.7,2572.6,0.50792798]
[1726959009091,0.81643621,2572.7,2572.6,0.50792467]
[1726959009254,0.81643621,2572.7,2572.6,1.00792467]
[1726959009658,1.22455262,2572.8,2572.6,1.00792467]
[1726959009877,1.5100111,2572.7,2572.6,0.63863794]
[1726959010253,1.5100111,2572.7,2572.6,1.00798916]
[1726959011486,1.22455262,2572.7,2572.6,1.00798916]
[1726959012707,1.22455262,2572.7,2572.6,0.63863794]
[1726959013206,1.22455262,2572.7,2572.6,1.00792886]
[1726959013401,1.22455262,2572.7,2572.6,1.50792886]
[1726959015881,1.22455262,2572.7,2572.6,1.13863794]
[1726959016301,1.22455262,2572.7,2572.6,1.50792047]
[1726959017472,1.22455262,2572.7,2572.6,2.00792047]
[1726959018011,1.22446283,2572.8,2572.6,2.00792047]
[1726959018312,1.22446283,2572.8,2572.6,1.63863794]
[1726959018865,0.81627589,2572.7,2572.6,1.63863794]
[1726959019093,0.81627621,2572.7,2572.6,1.63863794]
[1726959019390,0.81626486,2572.7,2572.6,1.63863794]
[1726959019603,1.22446283,2572.8,2572.6,1.63863794]
[1726959019898,0.81626735,2572.7,2572.6,1.63863794]
[1726959020815,1.22446283,2572.7,2572.6,1.63863794]
[1726959021019,1.22446283,2572.8,2572.6,1.63863794]
[1726959021513,0.81626938,2572.7,2572.6,2.13863794]
[1726959021693,0.81626938,2572.7,2572.6,6.7949213]
[1726959021889,0.81626938,2572.8,2572.6,6.7949213]
[1726959022098,0.81626938,2572.8,2572.6,6.17720118]
[1726959024979,0.81626938,2572.9,2572.6,3.84700118]
[1726959025223,0.81626938,2573.1,2572.8,1.70836324]
[1726959025421,7.43,2573.4,2573.0,1.70836324]
[1726959025609,7.43,2573.4,2573.3,2.20116375]
[1726959025930,7.43,2573.4,2573.3,2.33910505]
[1726959029989,0.0374165,2573.5,2573.3,2.33910505]
[1726959031452,0.0374165,2573.5,2573.4,1.70836324]
[1726959031908,0.0374165,2573.5,2573.4,1.846054]
[1726959032091,0.0374165,2573.5,2573.4,1.8973433]
[1726959036023,0.0374165,2573.5,2573.4,1.70836324]
[1726959039301,0.0374165,2573.5,2573.4,1.8971831]
[1726959041345,0.0374165,2573.5,2573.4,2.30701779]
[1726959043555,0.0374165,2573.5,2573.4,7.80822949]
[1726959043860,0.0374165,2573.5,2573.4,8.28051779]
[1726959044011,0.0374165,2574.2,2574.1,4.13186324]
[1726959044447,0.0374165,2574.2,2574.1,4.31994359]
[1726959045160,0.0374165,2574.2,2574.1,4.75193795]
[1726959045321,0.0374165,2574.2,2574.1,5.30193795]
[1726959046762,0.0374165,2574.2,2574.1,8.30193795]
[1726959049122,0.0374165,2574.2,2574.1,6.04357471]
[1726959049344,0.0374165,2574.2,2574.1,5.61158035]
[1726959049650,0.0374165,2574.2,2574.1,0.18808035]
[1726959050011,0.0374165,2574.2,2573.9,5.2713]
[1726959050232,0.0374165,2574.2,2574.1,0.18796828]
[1726959050433,0.0374165,2574.2,2574.0,0.18806056]
[1726959050685,0.0374165,2574.2,2574.1,0.18796828]
[1726959051172,0.0374165,2574.2,2574.1,0.18764009]
[1726959051551,0.0374165,2574.2,2573.8,1.70836324]
[1726959051751,0.0374165,2574.2,2573.9,0.18782466]
[1726959054952,0.0374165,2574.2,2573.7,2.2713]
[1726959055153,0.0374165,2574.2,2573.8,0.18791695]
[1726959055355,0.0374165,2574.2,2573.7,2.2713]
[1726959055559,0.0374165,2574.2,2573.8,0.18791695]
[1726959055746,0.0374165,2574.2,2573.7,2.2713]
[1726959055942,0.0374165,2574.2,2573.8,0.18791695]
[1726959056160,0.0374165,2574.2,2573.7,2.2713]
[1726959056371,0.0374165,2574.2,2573.8,0.18791695]
[1726959056756,0.0374165,2574.2,2573.7,2.2713]
[1726959056955,0.0374165,2574.2,2573.8,0.18791695]
[1726959057286,0.0374165,2574.2,2573.7,2.2713]
[1726959057460,0.0374165,2574.2,2573.9,0.18782466]
[1726959057652,0.0374165,2574.2,2573.8,0.18791695]
[1726959057987,0.0374165,2574.2,2573.9,0.18782466]
[1726959058392,0.0374165,2574.2,2573.7,2.2713]
[1726959058560,0.0374165,2574.2,2574.0,0.18773237]
[1726959058879,0.0374165,2574.2,2573.7,2.2713]
[1726959059080,0.0374165,2574.2,2574.1,0.18764009]
[1726959059302,0.0374165,2574.2,2573.7,2.2713]
[1726959059449,0.0374165,2574.2,2574.1,0.18764009]
[1726959059645,0.0374165,2574.2,2573.7,2.2713]
[1726959059861,0.0374165,2574.2,2574.1,0.18764009]
[1726959060059,0.0374165,2574.2,2573.8,1.70836324]
[1726959060258,0.0374165,2574.2,2574.1,0.18764009]
[1726959060492,0.0374165,2574.2,2573.8,1.70836324]
[1726959060988,0.0374165,2574.2,2573.9,0.18782466]
[1726959062589,0.0374165,2574.2,2573.7,2.96926632]
[1726959062590,0.0374165,2574.2,2574.0,0.18773237]
[1726959063087,0.0374165,2574.2,2573.7,2.2713]
[1726959063249,0.0374165,2574.2,2574.1,0.18764009]
[1726959063449,0.0374165,2574.2,2574.1,1.70836324]
[1726959063758,0.0374165,2574.2,2574.1,5.45894009]
[1726959064079,0.0374165,2574.2,2574.1,7.16730333]
[1726959065791,0.0374165,2574.2,2574.1,7.71730333]
[1726959065993,0.0374165,2574.2,2574.1,8.48903366]
[1726959067698,7.5574165,2575.0,2574.1,8.48903366]
[1726959067699,7.5574165,2575.0,2574.9,1.70836324]
[1726959067997,7.5574165,2575.0,2574.9,2.4452707]
[1726959067998,0.1274165,2575.0,2574.9,2.4452707]
[1726959068289,0.1274165,2575.0,2574.9,5.26109777]
[1726959068488,0.1274165,2575.0,2574.9,8.26109777]
[1726959073259,0.1274165,2575.0,2574.9,6.55273453]
[1726959073417,0.1274165,2575.0,2574.9,8.26109777]
[1726959076159,0.1274165,2575.0,2574.9,0.73143453]
[1726959083063,0.1274165,2575.0,2574.9,0.18690746]
[1726959083925,0.1274165,2575.0,2574.9,0.68690746]
[1726959085068,0.3312165,2575.0,2574.9,0.68690746]
[1726959087424,0.1274165,2575.0,2574.9,0.68690746]
[1726959088024,0.1274165,2575.0,2574.9,1.18690746]
[1726959092143,0.1274165,2575.0,2574.9,1.68690746]
[1726959093541,0.1274165,2575.0,2574.9,4.18280746]
[1726959093742,0.1274165,2575.0,2574.9,7.18280746]
[1726959098445,0.1274165,2575.0,2574.9,1.68690746]
[1726959099194,0.3312165,2575.0,2574.9,1.68690746]
[1726959100778,0.1274165,2575.0,2574.9,1.68690746]
[1726959104182,0.1274165,2575.0,2574.9,4.18280746]
[1726959105882,0.1274165,2575.0,2574.9,4.60108821]
[1726959106042,0.1274165,2575.0,2574.9,5.15108821]
[1726959106848,0.1274165,2575.0,2574.9,8.15108821]
[1726959107356,0.1274165,2575.0,2574.9,11.82404445]
[1726959109981,0.1274165,2575.0,2574.9,9.84552601]
[1726959112590,0.0274165,2575.0,2574.9,10.40508275]
[1726959112787,0.0274165,2575.0,2574.9,10.96500944]
[1726959112972,0.0274165,2575.0,2574.9,10.40508275]
[1726959118471,0.0274165,2575.0,2574.9,29.31549249]
[1726959118760,0.0374165,2575.8,2575.7,4.6450378]
[1726959119167,0.0374165,2575.8,2575.7,4.82438596]
[1726959119495,0.0374165,2575.8,2575.7,7.82438596]
[1726959125837,0.0374165,2575.8,2575.7,3.72934816]
[1726959125986,0.0374165,2575.8,2575.7,0.72934816]
[1726959126183,0.0374165,2575.8,2575.7,1.51178676]
[1726959126515,0.0374165,2575.8,2575.7,0.96178676]
[1726959127882,0.2686165,2575.8,2575.7,0.17934816]
[1726959128283,0.2686165,2575.8,2575.4,1.6944378]
[1726959128610,0.0374165,2575.8,2575.6,1.6944378]
[1726959128814,0.0374165,2575.8,2575.7,0.25657685]
[1726959129343,0.0374165,2575.8,2575.7,0.17893794]
[1726959129632,0.0374165,2575.8,2575.7,0.25657779]
[1726959131603,0.0374165,2575.8,2575.7,0.17893794]
[1726959131919,0.0374165,2575.8,2575.4,1.6944378]
[1726959132126,0.0374165,2575.8,2575.7,0.17893794]
[1726959132422,0.0374165,2575.8,2575.7,0.17904981]
[1726959132635,0.0374165,2575.8,2575.5,0.54708439]
[1726959133122,0.0374165,2575.8,2575.6,0.17914197]
[1726959134826,0.0374165,2575.8,2575.6,0.2567826]
[1726959136924,0.0374165,2575.8,2575.6,2.6850826]
[1726959137150,0.0374165,2575.8,2575.6,3.16997902]
[1726959138603,0.0374165,2575.8,2575.6,0.74167902]
[1726959142514,0.0374165,2575.8,2575.7,0.5]
[1726959142915,0.0374165,2575.8,2575.7,0.67904981]
[1726959145536,0.0374165,2575.8,2575.7,0.63864981]
[1726959146635,0.0374165,2575.8,2575.7,1.13864981]
[1726959150679,0.0374165,2575.8,2575.7,1.63864981]
[1726959154677,0.0374165,2575.8,2575.7,2.13864981]
[1726959156442,0.0374165,2575.8,2575.7,8.56267887]
[1726959156645,0.0374165,2575.8,2575.7,9.68215535]
[1726959158853,0.0374165,2575.8,2575.7,10.18215535]
[1726959161394,0.024833,2576.5,2575.8,3.55]
[1726959161560,0.024833,2576.5,2576.2,1.6944378]
[1726959161987,0.024833,2576.5,2576.3,0.1783026]
[1726959162498,0.024833,2576.5,2576.4,0.17820783]
[1726959162653,0.024833,2576.5,2576.2,1.6944378]
[1726959162853,0.024833,2576.5,2576.4,0.17820783]
[1726959163074,0.024833,2576.5,2576.2,1.6944378]
[1726959163419,0.024833,2576.5,2576.4,0.17820783]
[1726959163620,0.024833,2576.5,2576.3,3.25591726]
[1726959163794,0.024833,2576.5,2576.4,0.17820783]
[1726959166420,0.024833,2576.5,2576.4,0.25582515]
[1726959169884,0.024833,2576.5,2576.4,0.17820783]
[1726959170086,0.024833,2576.5,2576.4,0.25582521]
[1726959171220,0.024833,2576.5,2576.4,0.17820783]
[1726959172599,0.024833,2576.5,2576.4,0.25582524]
[1726959172797,0.024833,2576.5,2576.4,0.17820783]
[1726959174629,0.024833,2576.5,2576.4,0.25582526]
[1726959177090,0.024833,2576.5,2576.4,0.17820783]
[1726959177527,0.024833,2576.5,2576.4,0.25582529]
[1726959181392,0.024833,2576.5,2576.4,0.17820783]
[1726959186431,0.024833,2576.5,2576.4,0.25582541]
[1726959186609,0.024833,2576.5,2576.4,0.98609173]
[1726959187436,0.024833,2576.5,2576.4,0.25582541]
[1726959187610,0.024833,2576.5,2576.4,0.17820783]
[1726959187935,0.024833,2576.5,2576.1,0.55]
[1726959188341,0.024833,2576.5,2576.3,3.0]
[1726959188500,0.024833,2576.5,2576.4,1.77205321]
[1726959188699,0.024833,2576.5,2576.4,1.0907562]
[1726959190406,0.0374165,2577.3,2576.5,5.8103]
[1726959190712,0.0374165,2577.3,2577.1,3.0]
[1726959191112,0.0374165,2577.3,2577.2,0.17725285]
[1726959191427,0.0374165,2577.3,2576.8,2.2603]
[1726959191609,0.0374165,2577.3,2577.2,0.17720228]
[1726959191823,0.2935165,2577.3,2576.8,2.2603]
[1726959192028,0.2935165,2577.3,2577.2,0.17720228]
[1726959192215,0.2935165,2577.3,2576.8,3.9547378]
[1726959192400,0.2935165,2577.3,2577.2,0.17720228]
[1726959192913,0.2935165,2577.3,2576.9,3.0]
[1726959193097,0.2935165,2577.3,2577.2,0.17720228]
[1726959193436,0.2935165,2577.3,2576.9,3.69547378]
[1726959193644,0.2935165,2577.3,2577.2,0.17720228]
[1726959193840,0.2935165,2577.3,2577.0,0.07760051]